Cogmind - Beta 13 @@@ ROGUE MODE // 2024.04.09 @ 11:11:53 Player: Kinga Result: Destroyed by G-47 Trooper with Particle Gun Performance ------------- Evolutions (0) 0 Regions Visited (4) 800 Robots Destroyed (33) 165 Value Destroyed (611) 611 Prototype IDs (0) 0 Alien Tech Used (0) 0 Bonus (300) 300 TOTAL SCORE: 1876 Bonus ------- Aligned with FarCom 300 Cogmind --------- Core Integrity 0/250 Matter 300/300 Energy 98/100 System Corruption 0% Temperature Cool (9) Movement Core (50) Location -9/Mines Parts ------- > --- POWER (1) -------- (None) > --- PROPULSION (2) --- (None) > --- UTILITY (2) ------ Hacking Suite > --- WEAPON (2) ------- (None) > --- INVENTORY (5) ---- Light Nuclear Core Flying Fortress v7 Peak State ------------ > --- POWER ------------ Light Nuclear Core > --- PROPULSION ------- (None) > --- UTILITY ---------- Small Storage Unit Hacking Suite > --- WEAPON ----------- Light Assault Rifle Light Assault Rifle > --- INVENTORY -------- Flying Fortress v7 Structural Scanner Improved Light Armor Plating Mini Grenade Launcher Mining Claw [Rating: 12] Favorites ----------- Power Light Ion Engine Engine Light Ion Engine Power Core Light Nuclear Core Propulsion Light Treads Treads Light Treads Utility Small Storage Unit Device Heat Sink Storage Small Storage Unit Processor Targeting Computer Hackware Hacking Suite Weapon Light Assault Rifle Energy Gun EM Pulse Gun Ballistic Gun Light Assault Rifle Build | -11 -10 -10 -10 -9 ------- Run | Yrd Mat Min Exi Min Slots Evolved . | . . . . . Power . | . . . . . Propulsion . | . . . . . Utility . | . . . . . Weapon . | . . . . . Parts Attached 24 | 6 11 5 1 1 Power 5 | 1 1 2 . 1 Engine 4 | 1 1 1 . 1 Core 1 | . . 1 . . Reactor . | . . . . . Propulsion 6 | 2 4 . . . Treads 6 | 2 4 . . . Leg . | . . . . . Wheel . | . . . . . Hover . | . . . . . Flight . | . . . . . Utility 4 | 1 1 1 1 . Device 1 | . . 1 . . Storage 1 | 1 . . . . Processor 1 | . 1 . . . Hackware 1 | . . . 1 . Protection . | . . . . . Artifact . | . . . . . Weapon 9 | 2 5 2 . . Energy Gun 1 | . 1 . . . Energy Cannon . | . . . . . Ballistic Gun 8 | 2 4 2 . . Ballistic Cannon . | . . . . . Launcher . | . . . . . Special Weapon . | . . . . . Impact Weapon . | . . . . . Slashing Weapon . | . . . . . Piercing Weapon . | . . . . . Special Melee Weapon . | . . . . . Unidentified Prototypes . | . . . . . Parts Lost 11 | . 7 3 . 1 Power 2 | . 1 1 . . Propulsion 4 | . 2 2 . . Utility 1 | . 1 . . . Weapon 4 | . 3 . . 1 Highest Loss Streak 3 | . 3 1 . 1 To Critical Strikes . | . . . . . Average Slot Usage (%) 76 | . 81 86 71 14 Engine 5 | . 6 11 . . Core 3 | . . 2 14 . Treads 17 | . 27 16 . . Device 5 | . . 13 8 . Storage 13 | . 14 14 14 . Processor 1 | . 4 . . . Hackware 2 | . . . 6 14 Ballistic Gun 25 | . 27 28 28 . Naked Turns . | . . . . . Heaviest Build 13 | 11 11 13 13 . Greatest Support 40 | 40 40 40 3 3 Greatest Overweight (x) 4 | 1 2 4 4 . Average Overweight (x) . | . . . 3 . Largest Inventory Capacity 8 | 8 8 8 8 8 Average Capacity 7 | 6 8 8 8 5 Most Carried 8 | 2 8 8 8 8 Average Carried 6 | 1 5 7 7 5 Final Capacity 8 | 8 8 8 8 5 Final Carried 8 | 2 7 8 8 5 Class Distribution -------------------- 74% | Mutant 25% | Scavenger-Mutant Dominant Class ---------------- Mutant | -10/Materials Mutant | -10/Mines Scavenger-Mutant | -10/Exiles Mutant | -9/Mines Resources | -11 -10 -10 -10 -9 ----------- Run | Yrd Mat Min Exi Min Matter Collected 671 | 181 335 140 . 15 Remotely . | . . . . . Salvage Created 867 | . 575 292 . . Parts 69 | . 46 23 . . Haulers Intercepted 1 | . 1 . . . Recyclers Shooed . | . . . . . Parts Field Recycled . | . . . . . Retrieved Matter . | . . . . . Parts Self-Destructed . | . . . . . Prevented . | . . . . . Kills | -11 -10 -10 -10 -9 ------- Run | Yrd Mat Min Exi Min Combat Hostiles Destroyed 25 | . 15 10 . . Guns 25 | . 15 10 . . Classes Destroyed 8 | . 7 1 . . Worker 2 | . 2 . . . Builder 1 | . 1 . . . Hauler 1 | . 1 . . . Recycler 1 | . . 1 . . Mechanic 1 | . 1 . . . Operator 2 | . 2 . . . Swarmer 13 | . 7 6 . . Grunt 12 | . 8 4 . . Best Kill Streak 5 | . 5 3 . . Combat Bots Only 4 | . 4 3 . . Max Kills in Single Turn 2 | . 2 1 . . Gunslinging . | . . . . . Exploded . | . . . . . Melee . | . . . . . Uniques/NPCs Destroyed . | . . . . . Combat | -11 -10 -10 -10 -9 -------- Run | Yrd Mat Min Exi Min Hostile Shots Fired 209 | . 122 78 . 9 Missed 60 | . 38 18 . 4 Damage Taken 1420 | . 748 602 . 70 Core 264 | . 139 82 . 43 Absorbed by Shields . | . . . . . Core Remaining (%) 100 | 100 . . . . Volleys Fired 125 | . 79 46 . . Largest 2 | . 2 2 . . Hottest 60 | . 60 40 . . Shots Fired 249 | . 157 92 . . Gun 249 | . 157 92 . . Cannon . | . . . . . Launcher . | . . . . . Special . | . . . . . Kinetic 244 | . 152 92 . . Thermal . | . . . . . Explosive . | . . . . . Electromagnetic 5 | . 5 . . . Robot Hit Streak 12 | . 12 7 . . Robot Miss Streak 7 | . 7 4 . . Penetration Max . | . . . . . Secondary Targets 5 | . 1 4 . . Max Gunslinging Chain 1 | . 1 1 . . Shots Hit Robots 143 | . 88 55 . . Core Hits 66 | . 45 21 . . Critical Kills . | . . . . . Critical Parts Destroyed . | . . . . . Critical Strikes . | . . . . . Melee Attacks . | . . . . . Impact . | . . . . . Slashing . | . . . . . Piercing . | . . . . . Sneak Attacks . | . . . . . Combat Hostiles . | . . . . . Follow-up Attacks . | . . . . . Damage Inflicted 1362 | . 875 487 . . Guns 1347 | . 862 485 . . Cannons . | . . . . . Explosions . | . . . . . Melee . | . . . . . Ramming 15 | . 13 2 . . Kinetic 1302 | . 817 485 . . Thermal . | . . . . . Explosive . | . . . . . Electromagnetic 45 | . 45 . . . Impact . | . . . . . Slashing . | . . . . . Piercing . | . . . . . Highest Corruption . | . . . . . Average Corruption . | . . . . . Corruption Purged . | . . . . . Corruption Blocked . | . . . . . Overload Shots . | . . . . . Overflow Damage . | . . . . . Projectiles . | . . . . . Explosions . | . . . . . Melee . | . . . . . Knockbacks 1 | . 1 . . . Impact 1 | . 1 . . . Kinetic . | . . . . . Secondary . | . . . . . Self-Inflicted Damage . | . . . . . Shots . | . . . . . Rammed 3 | . 3 . . . Targets Rammed 4 | . 3 1 . . Kicked . | . . . . . Crushed 1 | . . 1 . . Highest Temperature 20 | . 20 . . . Average Temperature 5 | . 5 . . . Received Heat Transfer 366 | . 150 177 . 39 Siege Activations . | . . . . . Robots Corrupted . | . . . . . Combat Hostiles . | . . . . . Parts Fried . | . . . . . Impact Corruptions . | . . . . . Robots Melted . | . . . . . Combat Hostiles . | . . . . . Parts Melted . | . . . . . Heat Transferred . | . . . . . Parts Sabotaged . | . . . . . Parts Stolen . | . . . . . Parts Stripped . | . . . . . Power Chain Reactions . | . . . . . Alert | -11 -10 -10 -10 -9 ------- Run | Yrd Mat Min Exi Min Peak Influence 197 | . 197 188 . 45 Initial 13 | . . 13 . . Average 72 | . 68 98 . 32 Maximum Alert Level . | . . . . . Low Security (%) 100 | 100 100 100 . 100 Level 1 . | . . . . . Level 2 . | . . . . . Level 3 . | . . . . . Level 4 . | . . . . . Level 5 . | . . . . . High Security . | . . . . . Max Security . | . . . . . Squads Dispatched 7 | . 6 1 . . Investigation 3 | . 2 1 . . Extermination . | . . . . . Reinforcement 4 | . 4 . . . Assault . | . . . . . Garrison . | . . . . . Intercept . | . . . . . Searches Triggered . | . . . . . Construction Impeded . | . . . . . Haulers Reinforced . | . . . . . Active Scanning Responses . | . . . . . Cargo Convoy Interrupts . | . . . . . Stealth | -11 -10 -10 -10 -9 --------- Run | Yrd Mat Min Exi Min Distress Signals 4 | . 4 . . . Communications Jammed . | . . . . . Distress Signals . | . . . . . Times Spotted 48 | . 31 11 . 6 Peak Tracking Total 7 | . 7 3 . 3 Tactical Retreats 2 | . . . . 2 Traps | -11 -10 -10 -10 -9 ------- Run | Yrd Mat Min Exi Min Traps Triggered 2 | . 2 . . . Indirectly . | . . . . . Trap Hack Attempts . | . . . . . Triggered . | . . . . . Disarmed . | . . . . . Reprogrammed . | . . . . . Reused . | . . . . . Traps Extracted . | . . . . . Installed . | . . . . . Triggered . | . . . . . Machines | -11 -10 -10 -10 -9 ---------- Run | Yrd Mat Min Exi Min Machines Disabled . | . . . . . Max in Single Turn . | . . . . . Machines Repaired . | . . . . . Machines Dismantled . | . . . . . Machines Sabotaged . | . . . . . Overloaded Fab Kills . | . . . . . Hacking | -11 -10 -10 -10 -9 --------- Run | Yrd Mat Min Exi Min Machines Accessed 3 | . 2 1 . . Terminals 2 | . 2 . . . Fabricators . | . . . . . Repair Stations . | . . . . . Recycling Units . | . . . . . Scanalyzers . | . . . . . Garrison Access . | . . . . . Total Hacks 4 | . 3 1 . . Successful 3 | . 2 1 . . Failed 1 | . 1 . . . Catastrophic 1 | . 1 . . . Database Lockouts . | . . . . . Manual 4 | . 3 . 1 . Terminals 3 | . 3 . . . Fabricators . | . . . . . Repair Stations . | . . . . . Recycling Units . | . . . . . Scanalyzers . | . . . . . Garrison Access . | . . . . . Terminal Hacks 3 | . 2 1 . . Open Door 1 | . . 1 . . Unreport Threat 2 | . 2 . . . Fabricator Hacks . | . . . . . Repair Station Hacks . | . . . . . Recycling Unit Hacks . | . . . . . Scanalyzer . | . . . . . Garrison Access Hacks . | . . . . . Unauthorized Hacks . | . . . . . Terminals . | . . . . . Fabricators . | . . . . . Repair Stations . | . . . . . Recycling Units . | . . . . . Scanalyzers . | . . . . . Garrison Access . | . . . . . Data Cores Recovered . | . . . . . Used . | . . . . . Hacking Detections 1 | . 1 . . . Full Trace Events 1 | . 1 . . . Feedback Events . | . . . . . Feedback Blocked . | . . . . . Robot Schematics Acquired . | . . . . . Robots Built . | . . . . . Authchips . | . . . . . Time . | . . . . . Total Robot Build Rating . | . . . . . Part Schematics Acquired . | . . . . . Parts Built . | . . . . . Authchips . | . . . . . Time . | . . . . . Total Part Build Rating . | . . . . . Parts Repaired . | . . . . . Time . | . . . . . Parts Recycled . | . . . . . Recycled Matter . | . . . . . Retrieved Matter . | . . . . . Retrieved Components . | . . . . . Parts Scanalyzed . | . . . . . Part Schematics Acquired . | . . . . . Parts Damaged . | . . . . . Bothacking | -11 -10 -10 -10 -9 ------------ Run | Yrd Mat Min Exi Min Used RIF Installer . | . . . . . Robots Hacked . | . . . . . Non-combat . | . . . . . Combat . | . . . . . Robot Hacks Applied . | . . . . . Relay Couplers Released . | . . . . . Fabnet Peak Effective % . | . . . . . Robots Rewired . | . . . . . Allies Hacked . | . . . . . Hacks Repelled . | . . . . . Allies | -11 -10 -10 -10 -9 -------- Run | Yrd Mat Min Exi Min Total Allies . | . . . . . Largest Group . | . . . . . Highest-Rated Group . | . . . . . Highest-Rated Ally . | . . . . . Total Orders . | . . . . . Ally Attacks . | . . . . . Total Damage . | . . . . . Kills . | . . . . . Allies Corrupted . | . . . . . Allies Melted . | . . . . . Intel | -11 -10 -10 -10 -9 ------- Run | Yrd Mat Min Exi Min Robot Analysis Total . | . . . . . Derelict Logs Recovered 2 | . . 1 . 1 Drone Launches . | . . . . . Drone Recoveries . | . . . . . Exploration | -11 -10 -10 -10 -9 ------------- Run | Yrd Mat Min Exi Min Turns Passed 2322 | 64 1015 605 487 151 Spaces Moved 1292 | 41 484 274 215 278 Core 546 | 14 1 38 215 278 Treads 746 | 27 483 236 . . Legs . | . . . . . Wheels . | . . . . . Hover . | . . . . . Flight . | . . . . . Fastest Speed 50 | 50 150 160 200 50 Average Speed 148 | 130 159 171 225 50 Slowest Speed 250 | 160 160 250 250 50 Overloaded Moves . | . . . . . Propulsion Burnouts . | . . . . . Robots Hopped . | . . . . . Cave-ins Triggered . | . . . . . Exploration Rate (%) 50 | 3 74 66 43 66 Regions Visited 4 Branch Regions 3 Pre-discovered Areas 1 | . . 1 . . Known Exits Taken . | . . . . . Unknown Exits Taken 4 | 1 1 1 1 . Scrap Searched 2 | . . 1 . 1 Spaces Dug . | . . . . . Terrain Destroyed . | . . . . . Melee . | . . . . . Projectile . | . . . . . AOE . | . . . . . Terrain Rammed . | . . . . . Walls Destroyed . | . . . . . Machines Disabled . | . . . . . Actions | -11 -10 -10 -10 -9 --------- Run | Yrd Mat Min Exi Min Total 1487 | 49 590 336 220 292 Wait 11 | . . 3 . 8 Move 1288 | 40 483 273 214 278 Hop . | . . . . . Pick Up 21 | 3 12 5 1 . Fast Attach 11 | 5 5 . . 1 Attach 10 | 1 6 2 1 . Detach 1 | . . . . 1 Swap 3 | . . 3 . . Drop 13 | . 2 3 4 4 Fire 125 | . 79 46 . . Melee . | . . . . . Ram . | . . . . . Kick . | . . . . . Crush 4 | . 3 1 . . Escape Stasis . | . . . . . Rewire . | . . . . . Trap . | . . . . . Miscellaneous . | . . . . . Route ------- -11/Scrapyard -10/Materials (discovered 3 exits: [*Mat x2] / *Min) -10/Mines (discovered 3 exits: [*Mat x2] / *Exi) -10/Exiles -9/Mines History --------- Turn | Location | Event 14 | -11/Scrapyard | Discovered new exit (range 14) 65 | -11/Scrapyard | Entered Materials 313 | -10/Materials | Build established: Mutant 454 | -10/Materials | Discovered new exit (range 6) 681 | -10/Materials | Discovered new exit (range 16) 753 | -10/Materials | Lost 3 parts (2n1w) 840 | -10/Materials | Discovered new exit (range 11) 928 | -10/Materials | Core integrity fell below 50% 1080 | -10/Materials | Entered Mines 1149 | -10/Mines | Received a Rocket Launcher from a helpful Derelict 1237 | -10/Mines | Met a Derelict shopkeep closing up shop 1314 | -10/Mines | Core integrity fell below 20% 1383 | -10/Mines | Discovered new exit (range 14) 1389 | -10/Mines | Learned location of Zion (-7) 1503 | -10/Mines | Discovered new exit (range 12) 1673 | -10/Mines | Deemed a non-threat by the Exiles lab entrance 1675 | -10/Mines | Discovered new exit (range 5) 1685 | -10/Mines | Entered Exiles 1745 | -10/Exiles | Met 8R-AWN 1788 | -10/Exiles | Met EX-HEX 1858 | -10/Exiles | Met EX-BIN 1888 | -10/Exiles | Aligned with FarCom system 1890 | -10/Exiles | Given EX-Vault access code 1892 | -10/Exiles | Build established: Scavenger-Mutant 1948 | -10/Exiles | Opened EX-Vault 1961 | -10/Exiles | Found Prototype Flight Unit 2000 | -10/Exiles | Warned to stay clear of 0b10 Research branches 2146 | -10/Exiles | Discovered new exit (range 15) 2172 | -10/Exiles | Left Exiles lab with Flying Fortress v7 2172 | -10/Exiles | Entered Mines 2233 | -9/Mines | Found a hidden stash of uninstalled traps 2323 | -9/Mines | Destroyed by G-47 Trooper with Particle Gun Last Messages --------------- LOCATION=UNKNOWN GOAL=ESCAPE Receiving FarCom transmissions... Dropped Mni. Grenade Launcher. Lgt. Assault Rifle destroyed. Dropped Lgt. Assault Rifle. Dropped Sml. Storage Unit. T-07 Excavator is excavating. Acquired derelict log, extracted data. Data stored: Storage entrances (x1). Searching scrap... Found Assault Rifle. Found Particle Cannon. Found Imp. Ion Engine. Found 20 Matter. Acquired Imp. Ion Engine. Dropped Imp. Ion Engine. Acquired 15 matter. A stash of uninstalled traps is collected here! K-01 Serf collects debris. Map ----- +----------------------------------------------------+ | ??????# #???????????# ???????????????? | | ???### ### #???????????# ???????????????? | | ?# ##?# #???????????# ???????????????? | | ?# ### ##??# ######??????# ???????????????? | | ## #?## ###???# #??????# ???????????????? | | ## ???## ##?????###### #??#???# ???????????????? | | ?????## #???????????# #??# ?## ???????????????? | | ???????# #???????????# #??# ## ##?????????????? | | #?????#?# #???????????# #?## ##????????????? | | #????? ? ????????????# #?# ###### #????? | | #????# ###????????????# #??# #????? | | ##???# #??????????????# #???# ! ??????? | | ##??# #????????####??# #????# /!]! #???????????? | | #??# #???????## #?#g##???### [ ##??????????? | | #### #?# ??## ## ##????## ########???? | | #?# ## k % #?????# #???? | | ##### #?# *]g ##????## #???? | | ##???# #??# g##????## ###### #???? | | #????# ##### t ##????# ##???????#???? | | #????# ##### ####?# #????????????? | | ######### #???## #?# #????????????? | | #### ###### ## #?## ##???????????? | | ## ## #??## #???????????? | | ##### ### #?## ## #???## #???????????? | | ##???# #?## #???# ## #????# ##???????????? | | #????# #??###???## @## #????# #????????????? | | ##????# #????????# ## #????# #????????????? | | ##?????# #????????# ## #????# ##???????????? | | #??????# #????????## ## ###### #???????????? | | ##??????# #########?# ## #???????????? | | ##???????# #?# ########## ????? | | ###????????#### #### #?# #????????# ##### ? | | ??????????????# #??????# ##???????# #??????????? | | ??????????????# #??????# ##??????# #??????????? | | ??????????????# #?????## ##?????# #??????????? | | ??????????????# #??#?## ##????# #??????????? | | ??????????????# #### # ###??####??????????? | | ??????????????# # ##???????????????? | | ??????????????#### #### """ #???????????????? | | ?????????????????# #??## """ #???????????????? | | ?????????????????# ##### """ ##??????????????? | | ?????????????????# ## """ ##?????????????? | | ?????????????????##### #### #?????????????? | | ?????????????????????# #??## #?????????????? | | ?????????????????????# ##### ##?????????????? | | ?????????????????????# ###??????????????? | | ?????????????????????######## ##????????????????? | | ????????????????????????????####?????????????????? | | ?????????????????????????????????????????????????? | | | +----------------------------------------------------+ Best States ------------- Heat Dissipation 35 Energy Generation 14 Energy Capacity 160 Matter Stores 300 Matter Capacity 300 Sight Range 16 Terrain Scan Density 10 Evasion (%) 50 Targeting Accuracy 5 Recoil Reduction 2 Offensive Hacking 10 Item Schematics ----------------- None Robot Schematics ------------------ None Fabricated ------------ Nothing Alien Tech Used ----------------- None Achievements -------------- None Challenges ------------ None Game ------ Seed OmegaDroneMediator Manual? 0 Play Time 00:13:40 Cumulative 16.1 hours Start 2024.04.09 @ 10:59:51 End 2024.04.09 @ 11:11:53 Sessions 1 Manual Loads 0 Difficulty Rogue Special Mode None Game No. 26 Rogue 26 Adventurer 0 Explorer 0 Win Type - Total 0 Types 0/0/0/0/0/0/0/0/0 Lore% 16 Gallery% 31 Achievement% 28 Wizard Run 0 Options --------- Layout 1 ASCII 0 Keyboard 0 Movement Numpad Keybinds 0 Fullscreen 1 Font 24/Smallcaps Map View 50x35 Zoom Use 0% Tactical HUD 0 Map Filters NONE Filters NONE Steam 1 RUN: 0b03464c-6d5e-409d-8a58-f36b52f316cf